Cogmind - Beta 10.1 @@@ ROGUE MODE // 2020.10.08 @ 18:25:15 Player: 3.14 Result: Self-destructed Performance ------------- Evolutions (6) 3000 Regions Visited (17) 3400 Robots Destroyed (181) 905 Value Destroyed (6122) 6122 Prototype IDs (50) 1000 Alien Tech Used (0) 0 Bonus (2730) 2730 TOTAL SCORE: 17157 Bonus ------- High Alert Combat Kills 348 Follower Combat Kills 1291 Network Hubs Disabled 200 Aligned with FarCom 300 Met Data Miner 300 A7 Reached Mainframe 300 Met R17 at Cetus 500 Friendly Fire -509 Cogmind --------- Core Integrity 1150/1150 Matter 253/300 Energy 600/600 System Corruption 0% Temperature Cool (0) Movement Treading (160) Location -4/Factory Parts ------- > --- POWER (2) -------- Quantum Reactor Quantum Reactor > --- PROPULSION (4) --- Centrium Heavy Treads Centrium Heavy Treads > --- UTILITY (9) ------ Advanced Cooling System Large Storage Unit Large Storage Unit Large Storage Unit Improved Salvage Targeting Computer Improved Target Analyzer Experimental Transmission Jammer Centrium Medium Armor Plating Thermal Shield > --- WEAPON (4) ------- Hypervelocity Gauss Rifle Improved Heavy Machine Gun Improved KE Penetrator Improved KE Penetrator > --- INVENTORY (22) --- Improved Medium Treads Centrium Heavy Treads High-capacity Matter Pod (200) Experimental Sensor Array Improved Signal Interpreter Advanced Targeting Computer Weapon Cycler Layered Heavy Armor Plating Centrium Medium Armor Plating Centrium Medium Armor Plating Centrium Medium Armor Plating System Backup Module Long-range Tractor Beam Advanced Variable Charge Gun Gauss Rifle KE Penetrator Railgun Improved KE Penetrator Improved KE Penetrator Rocket Launcher Peak State ------------ > --- POWER ------------ Quantum Reactor Quantum Reactor > --- PROPULSION ------- Centrium Heavy Treads Centrium Heavy Treads > --- UTILITY ---------- Advanced Cooling System Large Storage Unit Large Storage Unit Large Storage Unit Improved Salvage Targeting Computer Improved Target Analyzer Experimental Transmission Jammer Centrium Medium Armor Plating Thermal Shield > --- WEAPON ----------- Hypervelocity Gauss Rifle Improved Heavy Machine Gun Improved KE Penetrator Improved KE Penetrator > --- INVENTORY -------- Centrium Heavy Treads High-capacity Matter Pod Experimental Sensor Array Improved Signal Interpreter Advanced Targeting Computer Weapon Cycler Layered Heavy Armor Plating Centrium Medium Armor Plating Centrium Medium Armor Plating Centrium Medium Armor Plating System Backup Module Long-range Tractor Beam Advanced Variable Charge Gun Gauss Rifle KE Penetrator Railgun Improved KE Penetrator Improved KE Penetrator Rocket Launcher [Rating: 134] Favorites ----------- Power Heavy Ion Engine Engine Heavy Ion Engine Power Core Light Nuclear Core Reactor Quantum Reactor Propulsion Light Treads Treads Light Treads Utility Large Storage Unit Device Advanced Sensor Array Storage Large Storage Unit Processor Improved Signal Interpreter Protection Improved Medium Armor Plating Weapon Improved Assault Rifle Energy Gun Advanced Variable Charge Gun Energy Cannon Proton Cannon Ballistic Gun Improved Assault Rifle Launcher Grenade Launcher Slashing Weapon Katana Build | -11 -10 -10 -10 -9 -8 -7 -7 -7 -7 -6 -6 -5 -5 -5 -5 -5 -4 ------- Run | Scr Mat Min Exi Min Mat Fac Low Low Dat Pro Fac Fac Ext Cet Arc Hub Fac Slots Evolved 12 | . . . . . 4 2 . . . . 2 2 . . . . 2 Power 1 | . . . . . . . . . . . . . . . . . 1 Propulsion 2 | . . . . . . 1 . . . . . 1 . . . . . Utility 7 | . . . . . 2 1 . . . . 2 1 . . . . 1 Weapon 2 | . . . . . 2 . . . . . . . . . . . . Parts Attached 196 | 7 5 6 2 4 44 12 10 5 2 18 11 6 25 19 6 12 2 Power 13 | 1 1 2 . . 3 . . . . . 1 . 2 2 . . 1 Engine 7 | 1 1 1 . . 3 . . . . . 1 . . . . . . Core 3 | . . 1 . . . . . . . . . . 2 . . . . Reactor 3 | . . . . . . . . . . . . . . 2 . . 1 Propulsion 27 | 2 2 . . . 12 4 . . . . 2 1 2 2 . . . Treads 27 | 2 2 . . . 12 4 . . . . 2 1 2 2 . . . Leg . | . . . . . . . . . . . . . . . . . . Wheel . | . . . . . . . . . . . . . . . . . . Hover . | . . . . . . . . . . . . . . . . . . Flight . | . . . . . . . . . . . . . . . . . . Utility 58 | 2 . . 2 . 10 6 4 1 1 7 4 4 4 1 2 9 1 Device 24 | 1 . . . . 3 3 2 1 . 4 . 1 3 . 1 4 1 Storage 5 | 1 . . 2 . 1 . . . . . . . . . . 1 . Processor 6 | . . . . . 1 . . . . . 2 1 . . . 2 . Hackware . | . . . . . . . . . . . . . . . . . . Protection 23 | . . . . . 5 3 2 . 1 3 2 2 1 1 1 2 . Artifact . | . . . . . . . . . . . . . . . . . . Weapon 98 | 2 2 4 . 4 19 2 6 4 1 11 4 1 17 14 4 3 . Energy Gun 2 | . . . . . 1 . . . . . . . . 1 . . . Energy Cannon 2 | . . . . . . . . . . . . . 1 1 . . . Ballistic Gun 79 | 2 2 3 . 2 18 2 3 3 . 7 3 1 14 12 4 3 . Ballistic Cannon . | . . . . . . . . . . . . . . . . . . Launcher 9 | . . 1 . 2 . . 1 . 1 3 . . 1 . . . . Special Weapon . | . . . . . . . . . . . . . . . . . . Impact Weapon . | . . . . . . . . . . . . . . . . . . Slashing Weapon 6 | . . . . . . . 2 1 . 1 1 . 1 . . . . Piercing Weapon . | . . . . . . . . . . . . . . . . . . Special Melee Weapon . | . . . . . . . . . . . . . . . . . . Unidentified Prototypes 7 | . . . . . 2 . . . . . . . . 4 . 1 . Parts Lost 3 | . 1 . . . 1 . . . . . 1 . . . . . . Power 1 | . . . . . . . . . . . 1 . . . . . . Propulsion . | . . . . . . . . . . . . . . . . . . Utility 2 | . 1 . . . 1 . . . . . . . . . . . . Weapon . | . . . . . . . . . . . . . . . . . . Highest Loss Streak 1 | . 1 . . . 1 . . . . . 1 . . . . . . Average Slot Usage (%) 92 | . 89 85 96 100 95 98 91 92 92 92 92 94 94 88 88 88 81 Engine 5 | . 14 10 . . 8 7 7 7 7 7 5 5 3 . . . . Core 2 | . . 3 14 14 . . . . . . . . 1 . . . . Treads 18 | . 26 28 28 28 18 21 15 15 15 15 13 17 17 11 11 11 10 Device 4 | . 5 . . . . 4 5 7 7 5 1 5 8 11 15 9 11 Storage 20 | . 14 14 25 28 20 23 23 23 23 23 20 17 17 17 17 17 15 Processor 7 | . . . . . 6 7 7 7 7 7 20 15 11 11 11 12 10 Protection 3 | . . . . . 4 2 1 . . 1 4 6 7 5 1 4 5 Ballistic Gun 27 | . 28 27 28 21 35 29 26 27 30 29 25 23 21 20 23 23 21 Naked Turns . | . . . . . . . . . . . . . . . . . . Heaviest Build 121 | 11 12 12 40 42 68 77 77 69 75 77 81 87 87 101 102 102 121 Greatest Support 160 | 40 40 40 40 40 44 98 98 98 98 98 98 117 120 160 160 160 160 Greatest Overweight (x) 1 | . . . . 1 1 1 . . . . . . . . . . . Average Overweight (x) . | . . . . . 1 . . . . . . . . . . . . Largest Inventory Capacity 22 | 6 6 6 16 16 22 22 22 22 22 22 22 22 22 22 22 22 22 Average Capacity 18 | 5 6 6 13 16 17 22 22 22 22 22 22 22 22 22 22 22 22 Most Carried 22 | 2 6 6 13 16 22 22 22 22 22 22 22 22 22 22 22 22 22 Average Carried 18 | 1 5 5 10 14 16 21 22 21 22 21 21 20 21 21 21 21 21 Final Capacity 22 | 6 6 6 16 16 22 22 22 22 22 22 22 22 22 22 22 22 22 Final Carried 22 | 2 6 6 13 16 22 22 22 22 22 22 22 21 22 22 22 22 22 Class Distribution -------------------- 37% | Hauler-Skirmisher 20% | Mutant 14% | Scavenger-Skirmisher 11% | Scavenger-Gunner 5% | Hauler-Tank 3% | Skirmisher 3% | Hauler-Mutant Dominant Class ---------------- Mutant | -10/Materials Mutant | -10/Mines Mutant | -10/Exiles Mutant | -9/Mines Scavenger-Skirmisher | -8/Materials Hauler-Skirmisher | -7/Factory Hauler-Skirmisher | -7/Lower Caves Hauler-Skirmisher | -7/Lower Caves Hauler-Skirmisher | -7/Data Miner Hauler-Skirmisher | -6/Proximity Caves Hauler-Skirmisher | -6/Factory Hauler-Skirmisher | -5/Factory Scavenger-Gunner | -5/Extension Scavenger-Gunner | -5/Cetus Scavenger-Gunner | -5/Archives Scavenger-Skirmisher | -5/Hub_04(d) Scavenger-Skirmisher | -4/Factory Resources | -11 -10 -10 -10 -9 -8 -7 -7 -7 -7 -6 -6 -5 -5 -5 -5 -5 -4 ----------- Run | Scr Mat Min Exi Min Mat Fac Low Low Dat Pro Fac Fac Ext Cet Arc Hub Fac Matter Collected 6782 | 281 119 197 220 120 1302 236 407 42 . 746 298 186 655 524 482 967 . Remotely 397 | 10 52 . . . . . 72 . . . . . . . . 263 . Salvage Created 8232 | 51 268 265 . 150 1841 304 381 . . 675 298 281 536 991 440 1751 . Parts 407 | 2 18 21 . 16 102 16 12 . . 11 12 21 14 37 25 100 . Haulers Intercepted 12 | . 1 . . . 6 . . . . . . . 1 . . 4 . Recyclers Shooed 6 | . . . . . 3 1 . . . . 1 1 . . . . . Parts Field Recycled . | . . . . . . . . . . . . . . . . . . Retrieved Matter . | . . . . . . . . . . . . . . . . . . Parts Self-Destructed 25 | . . . . . . . 13 . . 12 . . . . . . . Prevented . | . . . . . . . . . . . . . . . . . . Kills | -11 -10 -10 -10 -9 -8 -7 -7 -7 -7 -6 -6 -5 -5 -5 -5 -5 -4 ------- Run | Scr Mat Min Exi Min Mat Fac Low Low Dat Pro Fac Fac Ext Cet Arc Hub Fac Combat Hostiles Destroyed 139 | . 9 11 . 21 31 5 7 . . 15 4 2 5 13 4 12 . Melee 1 | . . . . . . . . . . . . 1 . . . . . Guns 101 | . 9 8 . 2 31 5 7 . . 4 4 1 5 9 4 12 . AOE 33 | . . 3 . 19 . . . . . 11 . . . . . . . Classes Destroyed 15 | 1 3 . . 2 6 1 . . . . 1 . . 1 . . . Worker 5 | . . . . . 2 . . . . . . . . . . 3 . Builder 6 | . . . . . 2 . . . . . . . . . . 4 . Hauler 12 | . 1 . . . 6 . . . . . . . 1 . . 4 . Recycler 7 | 1 . . . . 2 . . . . . . 1 . . . 3 . Carrier 1 | . . . . . . . . . . . . . . 1 . . . Operator 2 | . . . . . . . . . . . 1 . . . 1 . . Watcher 6 | . . . . . 1 1 . . . . . 1 1 . . 2 . Swarmer 33 | . 6 7 . 8 7 . . . . . . . 3 2 . . . Grunt 52 | . 3 4 . 1 11 1 6 . . 13 3 . 1 6 . 3 . Brawler 7 | . . . . . 2 1 1 . . 2 . . . 1 . . . Duelist 3 | . . . . . 2 1 . . . . . . . . . . . Sentry 18 | . . . . . 8 1 . . . . 1 . 1 . 4 3 . Hunter 4 | . . . . . 1 . . . . . . . . . . 3 . Programmer 6 | . . . . . . 1 . . . . . 2 . . . 3 . Cetus Guard 4 | . . . . . . . . . . . . . . 4 . . . Assembled 13 | . . . . 13 . . . . . . . . . . . . . Savage 1 | . . . . . . . . . . . . . 1 . . . . Guerrilla 1 | . . . . 1 . . . . . . . . . . . . . Best Kill Streak 15 | 1 8 3 . 12 9 3 2 . . 9 3 1 3 5 2 15 . Combat Bots Only 12 | . 8 3 . 12 9 3 2 . . 9 3 1 3 4 1 3 . Max Kills in Single Turn 4 | 1 2 3 . 4 2 1 2 . . 2 2 1 3 2 1 2 . Gunslinging 2 | . 1 1 . . 1 . . . . . . . 2 . . . . Exploded 4 | . . 3 . 4 . . . . . 2 . . . . . . . Melee 1 | . . . . . . . . . . . . 1 . . . . . Uniques/NPCs Destroyed . | . . . . . . . . . . . . . . . . . . Combat | -11 -10 -10 -10 -9 -8 -7 -7 -7 -7 -6 -6 -5 -5 -5 -5 -5 -4 -------- Run | Scr Mat Min Exi Min Mat Fac Low Low Dat Pro Fac Fac Ext Cet Arc Hub Fac Damage Taken 6089 | . 347 277 . 106 1199 308 258 . . 1038 259 357 174 572 257 937 . Core 448 | . 57 40 . . 145 48 18 . . 90 20 . . 10 . 20 . Absorbed by Shields 394 | . . . . . . . . . . . . . 33 361 . . . Reduced by Siege Mode 39 | . . . . . . . . . . . . . . 12 27 . . Core Remaining (%) 84 | 100 . . . 61 73 . . . . 77 97 . . . . 97 . Volleys Fired 373 | 4 37 25 . 13 83 10 21 . . 30 13 13 22 39 14 49 . Largest 4 | 2 2 2 . 1 4 4 4 . . 4 4 4 4 4 4 4 . Hottest 240 | 40 40 40 . 30 94 97 97 . . 99 104 114 122 240 136 120 . Shots Fired 1146 | 8 74 49 . 13 331 40 63 . . 68 52 49 56 94 56 193 . Gun 1085 | 8 74 48 . 2 331 40 56 . . 51 52 49 50 75 56 193 . Cannon 19 | . . . . . . . . . . . . . . 19 . . . Launcher 42 | . . 1 . 11 . . 7 . . 17 . . 6 . . . . Special . | . . . . . . . . . . . . . . . . . . Kinetic 1084 | 8 74 48 . 2 331 40 56 . . 51 52 49 50 74 56 193 . Thermal 1 | . . . . . . . . . . . . . . 1 . . . Explosive 42 | . . 1 . 11 . . 7 . . 17 . . 6 . . . . Electromagnetic 19 | . . . . . . . . . . . . . . 19 . . . Robot Hit Streak 28 | 2 21 16 . 8 22 28 10 . . 21 13 11 7 20 21 23 . Robot Miss Streak 9 | 1 4 2 . . 5 1 4 . . 1 2 2 2 9 1 3 . Penetration Max 2 | . . . . . . . . . . 1 . . 2 1 . 1 . Secondary Targets 19 | . 3 1 . . 8 . 2 . . 2 . . 2 1 . . . Max Gunslinging Chain 2 | . 1 1 . . 2 . 1 . . 1 . . 2 1 . . . Shots Hit Robots 810 | 5 48 31 . 5 227 34 44 . . 62 30 40 41 65 47 131 . Core Hits 417 | 3 18 18 . 42 86 14 22 . . 52 15 13 23 44 16 51 . Critical Hits 49 | . . 1 . . 2 . 1 . . . 2 1 4 7 6 25 . Critical Kills 15 | . . 1 . . 1 . . . . . 1 . . 2 2 8 . Critical Parts Destroyed 30 | . . . . . 1 . 1 . . . 1 1 3 5 2 16 . Melee Attacks 21 | . . . . . . . 6 4 . 6 1 . 4 . . . . Impact . | . . . . . . . . . . . . . . . . . . Slashing 21 | . . . . . . . 6 4 . 6 1 . 4 . . . . Piercing . | . . . . . . . . . . . . . . . . . . Sneak Attacks . | . . . . . . . . . . . . . . . . . . Combat Hostiles . | . . . . . . . . . . . . . . . . . . Follow-up Attacks . | . . . . . . . . . . . . . . . . . . Damage Inflicted 18274 | 41 497 396 . 1046 3085 482 591 . . 3303 527 711 1367 1710 1125 3393 . Guns 13496 | 38 487 297 . 28 3045 464 591 . . 686 521 671 956 1252 1125 3335 . Cannons 458 | . . . . . . . . . . . . . . 458 . . . Explosions 3282 | . . 92 . 1011 . . . . . 2130 . . . . . 49 . Melee 859 | . . . . . . . . . . 487 . . 372 . . . . Ramming 179 | 3 10 7 . 7 40 18 . . . . 6 40 39 . . 9 . Kinetic 13496 | 38 487 297 . 28 3045 464 591 . . 686 521 671 956 1252 1125 3335 . Thermal . | . . . . . . . . . . . . . . . . . . Explosive 3233 | . . 92 . 1011 . . . . . 2130 . . . . . . . Electromagnetic 507 | . . . . . . . . . . . . . . 458 . 49 . Impact . | . . . . . . . . . . . . . . . . . . Slashing 859 | . . . . . . . . . . 487 . . 372 . . . . Piercing . | . . . . . . . . . . . . . . . . . . Highest Corruption 10 | . 1 1 1 1 . 2 2 2 2 2 . 4 4 4 4 10 . Average Corruption 2 | . 1 1 1 1 . 2 2 2 2 2 . 3 4 4 3 4 . Corruption Purged 4 | . . . . . . . . . . . . . . . 4 . . Effects 128 | . . 4 3 4 . 6 14 5 1 12 . 2 27 18 10 22 . Message Errors 45 | . . 1 1 3 . 3 4 3 1 6 . . 8 8 3 4 . Matter Fused 17 | . . . . . . . . . . . . . 10 3 1 3 . Heat Flow Errors 12 | . . . . . . 1 1 1 . 3 . . 3 . 2 1 . Energy Discharges 14 | . . . . . . 2 4 1 . 1 . . 3 1 1 1 . Data Loss (minor) 13 | . . 2 2 1 . . 3 . . 2 . . 1 1 . 1 . Targeting Errors 23 | . . 1 . . . . 2 . . . . 2 2 4 3 9 . Weapon Failures 4 | . . . . . . . . . . . . . . 1 . 3 . Overload Shots 1 | . . . . . . . . . . . . . . 1 . . . Overflow Damage 333 | . . . . 8 . . . . . 224 . . 101 . . . . Projectiles . | . . . . . . . . . . . . . . . . . . Explosions 33 | . . . . 8 . . . . . 25 . . . . . . . Melee 300 | . . . . . . . . . . 199 . . 101 . . . . Knockbacks . | . . . . . . . . . . . . . . . . . . Impact . | . . . . . . . . . . . . . . . . . . Kinetic . | . . . . . . . . . . . . . . . . . . Secondary . | . . . . . . . . . . . . . . . . . . Self-Inflicted Damage 193 | . . . . . . . 12 . . 79 . . . . . 102 . Shots 4 | . . . . . . . 1 . . 2 . . . . . 1 . Rammed 23 | 1 4 1 . 1 9 1 . . . . 1 1 1 . . 3 . Targets Rammed 28 | 1 4 1 . 1 10 2 . . . . 1 3 2 . . 3 . Kicked . | . . . . . . . . . . . . . . . . . . Crushed 5 | . . . . . 1 1 . . . . . 2 1 . . . . Highest Temperature 344 | . 12 23 . . 120 205 156 143 . 259 80 344 117 181 103 227 . Average Temperature 52 | . 8 8 . . 35 46 59 79 . 82 24 138 42 14 19 88 . Received Heat Transfer 1371 | . 78 105 . . 342 54 126 . . 387 99 . 22 95 9 54 . Effects 1 | . . . . . . . . . . . . 1 . . . . . Energy Bleed 1 | . . . . . . . . . . . . 1 . . . . . Siege Activations 12 | . . . . . . . . . . . . . . 6 5 1 . Total Turns 135 | . . . . . . . . . . . . . . 71 56 8 . Longest Duration 22 | . . . . . . . . . . . . . . 22 19 8 . Robots Corrupted 4 | . . . . . . . . . . . . . . 4 . . . Combat Hostiles 4 | . . . . . . . . . . . . . . 4 . . . Parts Fried 2 | . . . . . . . . . . . . . . 2 . . . Impact Corruptions . | . . . . . . . . . . . . . . . . . . Robots Melted . | . . . . . . . . . . . . . . . . . . Combat Hostiles . | . . . . . . . . . . . . . . . . . . Parts Melted . | . . . . . . . . . . . . . . . . . . Heat Transferred . | . . . . . . . . . . . . . . . . . . Parts Sabotaged . | . . . . . . . . . . . . . . . . . . Parts Stolen . | . . . . . . . . . . . . . . . . . . Parts Stripped . | . . . . . . . . . . . . . . . . . . Power Chain Reactions . | . . . . . . . . . . . . . . . . . . Missiles Intercepted . | . . . . . . . . . . . . . . . . . . Alert | -11 -10 -10 -10 -9 -8 -7 -7 -7 -7 -6 -6 -5 -5 -5 -5 -5 -4 ------- Run | Scr Mat Min Exi Min Mat Fac Low Low Dat Pro Fac Fac Ext Cet Arc Hub Fac Peak Influence 727 | 5 240 170 . 105 488 157 . . . . 513 192 414 694 423 727 355 Initial 355 | . 3 33 . . . 44 . . . . 55 192 39 231 266 77 355 Average 176 | 1 70 70 . 33 228 67 . . . . 141 132 127 512 339 299 355 Maximum Alert Level 3 | . 1 . . . 2 . . . . . 2 . 2 2 2 3 1 Low Security (%) 65 | 100 83 100 . 100 50 100 . . . . 74 100 73 . . 24 . Level 1 20 | . 16 . . . 37 . . . . . 14 . 12 26 51 45 100 Level 2 14 | . . . . . 12 . . . . . 10 . 13 73 48 27 . Level 3 . | . . . . . . . . . . . . . . . . 2 . Level 4 . | . . . . . . . . . . . . . . . . . . Level 5 . | . . . . . . . . . . . . . . . . . . High Security . | . . . . . . . . . . . . . . . . . . Max Security . | . . . . . . . . . . . . . . . . . . Squads Dispatched 14 | . 2 . . . 2 2 . . . . 1 3 . . . 4 . Investigation 3 | . . . . . . 1 . . . . 1 1 . . . . . Extermination 3 | . . . . . . 1 . . . . . 1 . . . 1 . Reinforcement 7 | . 2 . . . 1 . . . . . . 1 . . . 3 . Assault . | . . . . . . . . . . . . . . . . . . Garrison 1 | . . . . . 1 . . . . . . . . . . . . Intercept . | . . . . . . . . . . . . . . . . . . Construction Impeded 2 | . . . . . . . . . . . . 1 . . . 1 . Haulers Reinforced 1 | . . . . . . . . . . . . . . . . 1 . Stealth | -11 -10 -10 -10 -9 -8 -7 -7 -7 -7 -6 -6 -5 -5 -5 -5 -5 -4 --------- Run | Scr Mat Min Exi Min Mat Fac Low Low Dat Pro Fac Fac Ext Cet Arc Hub Fac Distress Signals 11 | . 1 . . . 6 . . . . . . . 1 2 . 1 . Communications Jammed 64 | . . . . . . . . . . . . . 35 . . 29 . Distress Signals 62 | . . . . . . . . . . . . . 35 . . 27 . Times Spotted 202 | . 15 12 . 25 43 5 6 . . 18 9 3 19 22 3 22 . Peak Tracking Total 14 | . 4 3 . 14 6 3 4 . . 7 3 2 3 5 1 4 . Tactical Retreats 11 | . 1 2 . 2 1 . 1 . . 2 . . . . . 2 . Traps | -11 -10 -10 -10 -9 -8 -7 -7 -7 -7 -6 -6 -5 -5 -5 -5 -5 -4 ------- Run | Scr Mat Min Exi Min Mat Fac Low Low Dat Pro Fac Fac Ext Cet Arc Hub Fac Traps Triggered 6 | . 1 . . . . 3 . . . . . 1 1 . . . . Indirectly . | . . . . . . . . . . . . . . . . . . Trap Hack Attempts . | . . . . . . . . . . . . . . . . . . Triggered . | . . . . . . . . . . . . . . . . . . Disarmed 6 | . 6 . . . . . . . . . . . . . . . . Reprogrammed . | . . . . . . . . . . . . . . . . . . Reused . | . . . . . . . . . . . . . . . . . . Traps Extracted . | . . . . . . . . . . . . . . . . . . Installed . | . . . . . . . . . . . . . . . . . . Triggered . | . . . . . . . . . . . . . . . . . . Machines | -11 -10 -10 -10 -9 -8 -7 -7 -7 -7 -6 -6 -5 -5 -5 -5 -5 -4 ---------- Run | Scr Mat Min Exi Min Mat Fac Low Low Dat Pro Fac Fac Ext Cet Arc Hub Fac Machines Disabled 19 | . . . . 1 . . . . . . . . 1 4 2 11 . Max in Single Turn 6 | . . . . 1 . . . . . . . . 1 1 1 6 . Garrison Access 3 | . . . . . 1 . . . . . 1 . . . . 1 . Network Hub 1 | . . . . . . . . . . . . . . . . 1 . Machines Sabotaged . | . . . . . . . . . . . . . . . . . . Garrisons Compromised . | . . . . . . . . . . . . . . . . . . Overloaded Fab Kills . | . . . . . . . . . . . . . . . . . . Fab Network Shutdowns 1 | . . . . . . . . . . . 1 . . . . . . Hacking | -11 -10 -10 -10 -9 -8 -7 -7 -7 -7 -6 -6 -5 -5 -5 -5 -5 -4 --------- Run | Scr Mat Min Exi Min Mat Fac Low Low Dat Pro Fac Fac Ext Cet Arc Hub Fac Machines Accessed 40 | . 3 . 2 1 7 4 . . 3 . 6 2 9 1 . 2 . Terminals 22 | . 2 . . . 4 2 . . . . 2 1 9 1 . 1 . Fabricators 3 | . . . . . . 1 . . . . 1 1 . . . . . Repair Stations 3 | . 1 . . . 1 . . . . . 1 . . . . . . Recycling Units . | . . . . . . . . . . . . . . . . . . Scanalyzers 2 | . . . . . 1 . . . . . 1 . . . . . . Garrison Access 4 | . . . . . 1 1 . . . . 1 . . . . 1 . Total Hacks 113 | . 14 . 2 1 22 9 . . 23 . 10 6 20 3 . 3 . Successful 66 | . 8 . 2 1 13 5 . . 23 . 7 1 5 . . 1 . Failed 47 | . 6 . . . 9 4 . . . . 3 5 15 3 . 2 . Catastrophic 5 | . . . . . . . . . . . . 1 4 . . . . Database Lockouts . | . . . . . . . . . . . . . . . . . . Manual 38 | . 6 . 1 . 2 4 . . . . . 3 19 3 . . . Terminals 56 | . 9 . . . 12 4 . . . . 3 3 20 3 . 2 . Fabricators 10 | . . . . . . 3 . . . . 4 3 . . . . . Repair Stations 8 | . 5 . . . 2 . . . . . 1 . . . . . . Recycling Units . | . . . . . . . . . . . . . . . . . . Scanalyzers 7 | . . . . . 6 . . . . . 1 . . . . . . Garrison Access 6 | . . . . . 2 2 . . . . 1 . . . . 1 . Terminal Hacks 39 | . 3 . 2 1 4 2 . . 23 . 2 . 2 . . . . Record 7 | . . . 1 . . . . . 6 . . . . . . . . Part Schematic 9 | . . . . . . . . . 8 . . . 1 . . . . Robot Schematic 6 | . . . . . . . . . 6 . . . . . . . . Robot Analysis 1 | . . . . . . . . . . . . . 1 . . . . Prototype ID Bank 6 | . 1 . . . 1 . . . 3 . 1 . . . . . . Open Door 1 | . . . . 1 . . . . . . . . . . . . . Terminal Index 2 | . . . . . 1 1 . . . . . . . . . . . Repair Station Index 1 | . 1 . . . . . . . . . . . . . . . . Unreport Threat 2 | . . . . . 2 . . . . . . . . . . . . Locate Traps 1 | . . . . . . 1 . . . . . . . . . . . Disarm Traps 1 | . 1 . . . . . . . . . . . . . . . . Zone Layout 1 | . . . . . . . . . . . 1 . . . . . . EX-Prototype ID Bank 1 | . . . 1 . . . . . . . . . . . . . . Fabricator Hacks 6 | . . . . . . 1 . . . . 4 1 . . . . . Load Schematic 3 | . . . . . . . . . . . 2 1 . . . . . Build 3 | . . . . . . 1 . . . . 2 . . . . . . Repair Station Hacks 6 | . 4 . . . 2 . . . . . . . . . . . . Scan Component 3 | . 2 . . . 1 . . . . . . . . . . . . Repair 3 | . 2 . . . 1 . . . . . . . . . . . . Recycling Unit Hacks . | . . . . . . . . . . . . . . . . . . Scanalyzer 6 | . . . . . 6 . . . . . . . . . . . . Insert Component 3 | . . . . . 3 . . . . . . . . . . . . Analyze 3 | . . . . . 3 . . . . . . . . . . . . Garrison Access Hacks 3 | . . . . . 1 . . . . . 1 . . . . 1 . Seal Access 3 | . . . . . 1 . . . . . 1 . . . . 1 . Unauthorized Hacks 6 | . 1 . . . . 2 . . . . . . 3 . . . . Terminals 6 | . 1 . . . . 2 . . . . . . 3 . . . . Track 2 | . . . . . . 1 . . . . . . 1 . . . . Botnet 4 | . 1 . . . . 1 . . . . . . 2 . . . . Fabricators . | . . . . . . . . . . . . . . . . . . Repair Stations . | . . . . . . . . . . . . . . . . . . Recycling Units . | . . . . . . . . . . . . . . . . . . Scanalyzers . | . . . . . . . . . . . . . . . . . . Garrison Access . | . . . . . . . . . . . . . . . . . . Data Cores Recovered 1 | . . . . . . . . . . . 1 . . . . . . Used . | . . . . . . . . . . . . . . . . . . Hacking Detections 32 | . 3 . . . 7 4 . . . . 5 2 9 1 . 1 . Full Trace Events 3 | . . . . . . 1 . . . . 1 1 . . . . . Feedback Events . | . . . . . . . . . . . . . . . . . . Feedback Blocked . | . . . . . . . . . . . . . . . . . . Robot Schematics Acquired 6 | . . . . . . . . . 6 . . . . . . . . Robots Built . | . . . . . . . . . . . . . . . . . . Matter . | . . . . . . . . . . . . . . . . . . Time . | . . . . . . . . . . . . . . . . . . Total Robot Build Rating . | . . . . . . . . . . . . . . . . . . Part Schematics Acquired 12 | . . . . . 3 . . . 8 . . . 1 . . . . Parts Built 4 | . . . . . . 2 . . . . 2 . . . . . . Matter 903 | . . . . . . 234 . . . . 669 . . . . . . Time 414 | . . . . . . 58 . . . . 356 . . . . . . Total Part Build Rating 27 | . . . . . . 14 . . . . 13 . . . . . . Parts Repaired 3 | . 2 . . . 1 . . . . . . . . . . . . Time 78 | . 52 . . . 26 . . . . . . . . . . . . Parts Recycled . | . . . . . . . . . . . . . . . . . . Recycled Matter . | . . . . . . . . . . . . . . . . . . Retrieved Matter . | . . . . . . . . . . . . . . . . . . Retrieved Components . | . . . . . . . . . . . . . . . . . . Parts Scanalyzed 3 | . . . . . 3 . . . . . . . . . . . . Part Schematics Acquired 3 | . . . . . 3 . . . . . . . . . . . . Parts Damaged . | . . . . . . . . . . . . . . . . . . Bothacking | -11 -10 -10 -10 -9 -8 -7 -7 -7 -7 -6 -6 -5 -5 -5 -5 -5 -4 ------------ Run | Scr Mat Min Exi Min Mat Fac Low Low Dat Pro Fac Fac Ext Cet Arc Hub Fac Used RIF Installer . | . . . . . . . . . . . . . . . . . . Robots Hacked . | . . . . . . . . . . . . . . . . . . Non-combat . | . . . . . . . . . . . . . . . . . . Combat . | . . . . . . . . . . . . . . . . . . Robot Hacks Applied . | . . . . . . . . . . . . . . . . . . Relay Couplers Released . | . . . . . . . . . . . . . . . . . . Robots Rewired 12 | . . . . . . . . . . . . . 12 . . . . Allies Hacked 2 | . . . . . . . . . . . . . 2 . . . . Hacks Repelled . | . . . . . . . . . . . . . . . . . . Allies | -11 -10 -10 -10 -9 -8 -7 -7 -7 -7 -6 -6 -5 -5 -5 -5 -5 -4 -------- Run | Scr Mat Min Exi Min Mat Fac Low Low Dat Pro Fac Fac Ext Cet Arc Hub Fac Total Allies 24 | . . 1 . 3 . . . . . 1 . . 19 . . . . Largest Group 10 | . . 1 . 3 . . . . . 1 . . 10 2 1 . . Highest-Rated Group 433 | . . 31 . 40 . . . . . 94 . . 433 176 150 . . Highest-Rated Ally 156 | . . 31 . 16 . . . . . 94 . . 156 156 150 . . Total Orders 1 | . . . . . . . . . . . . . 1 . . . . STAY 1 | . . . . . . . . . . . . . 1 . . . . Ally Attacks 198 | . . 17 . 10 7 . . . . 8 . . 116 40 . . . Total Damage 4796 | . . 166 . 110 48 . . . . 278 . . 3045 1149 . . . Kills 33 | . . 2 . 1 . . . . . 1 . . 17 12 . . . Allies Corrupted . | . . . . . . . . . . . . . . . . . . Allies Melted . | . . . . . . . . . . . . . . . . . . Intel | -11 -10 -10 -10 -9 -8 -7 -7 -7 -7 -6 -6 -5 -5 -5 -5 -5 -4 ------- Run | Scr Mat Min Exi Min Mat Fac Low Low Dat Pro Fac Fac Ext Cet Arc Hub Fac Robot Analysis Total 1 | . . . . . . . . . . . . . 1 . . . . Derelict Logs Recovered 8 | . . 2 . 1 . . 1 3 . 1 . . . . . . . Drone Launches 3 | . . . . . 3 . . . . . . . . . . . . Drone Recoveries 3 | . . . . . 3 . . . . . . . . . . . . Exploration | -11 -10 -10 -10 -9 -8 -7 -7 -7 -7 -6 -6 -5 -5 -5 -5 -5 -4 ------------- Run | Scr Mat Min Exi Min Mat Fac Low Low Dat Pro Fac Fac Ext Cet Arc Hub Fac Turns Passed 14172 | 96 625 738 591 928 2150 875 1046 600 135 1380 938 628 1409 616 590 722 105 Spaces Moved 6289 | 46 280 393 364 378 897 423 427 364 83 750 340 186 691 263 72 269 63 Core 2 | 2 . . . . . . . . . . . . . . . . . Treads 6287 | 44 280 393 364 378 897 423 427 364 83 750 340 186 691 263 72 269 63 Legs . | . . . . . . . . . . . . . . . . . . Wheels . | . . . . . . . . . . . . . . . . . . Hover . | . . . . . . . . . . . . . . . . . . Flight . | . . . . . . . . . . . . . . . . . . Fastest Speed 50 | 50 160 160 160 160 165 160 160 160 160 160 160 155 155 155 160 160 160 Average Speed 162 | 155 160 160 160 177 171 166 160 160 160 160 160 155 155 159 160 160 160 Slowest Speed 180 | 160 160 160 160 180 180 175 160 160 160 160 160 155 155 160 160 160 160 Overloaded Moves . | . . . . . . . . . . . . . . . . . . Propulsion Burnouts . | . . . . . . . . . . . . . . . . . . Robots Hopped . | . . . . . . . . . . . . . . . . . . Cave-ins Triggered . | . . . . . . . . . . . . . . . . . . Exploration Rate (%) 48 | 4 45 81 71 89 63 11 60 45 69 81 7 5 68 67 74 29 3 Regions Visited 17 Branch Regions 11 Pre-discovered Areas 2 | . . . 1 . . . . . 1 . . . . . . . . Known Exits Taken 8 | . . . . . 1 1 1 1 1 1 1 1 . . . . . Unknown Exits Taken 9 | 1 1 1 1 1 . . . . . . . . 1 1 1 1 . Scrap Searched 8 | . . 2 . 1 . . 1 2 . 2 . . . . . . . Spaces Dug 62 | . . . . 8 . . 30 4 . . 1 . 19 . . . . Terrain Destroyed 474 | . . 4 . 61 . . 65 4 . 67 4 1 64 . 8 196 . Melee 11 | . . . . . . . 6 4 . . 1 . . . . . . Projectile 45 | . . . . . . . . . . . 3 1 2 . 8 31 . AOE 418 | . . 4 . 61 . . 59 . . 67 . . 62 . . 165 . Terrain Rammed . | . . . . . . . . . . . . . . . . . . Walls Destroyed . | . . . . . . . . . . . . . . . . . . Machines Disabled . | . . . . . . . . . . . . . . . . . . Actions | -11 -10 -10 -10 -9 -8 -7 -7 -7 -7 -6 -6 -5 -5 -5 -5 -5 -4 --------- Run | Scr Mat Min Exi Min Mat Fac Low Low Dat Pro Fac Fac Ext Cet Arc Hub Fac Total 9498 | 59 389 462 372 622 1328 572 735 374 84 865 703 490 995 415 522 445 66 Wait 2228 | . 52 28 1 222 222 107 270 . . 58 324 282 79 60 421 102 . Move 6272 | 45 279 392 363 377 896 422 426 363 82 749 339 185 690 262 71 268 63 Hop . | . . . . . . . . . . . . . . . . . . Pick Up 97 | 2 7 3 5 4 25 8 . 1 . 1 7 1 14 12 3 3 1 Fast Attach 40 | 7 2 1 1 . 6 3 2 . . . 2 1 3 7 . 4 1 Attach 22 | . . . . . 8 3 . 1 . . 4 2 . 3 . . 1 Detach 2 | . . . . . 2 . . . . . . . . . . . . Swap 134 | . 3 5 1 4 30 6 8 4 2 18 5 3 22 9 6 8 . Drop 150 | . 5 7 1 1 46 11 2 1 . 3 7 . 28 23 7 8 . Fire 373 | 4 37 25 . 13 83 10 21 . . 30 13 13 22 39 14 49 . Melee 21 | . . . . . . . 6 4 . 6 1 . 4 . . . . Ram . | . . . . . . . . . . . . . . . . . . Kick . | . . . . . . . . . . . . . . . . . . Crush 28 | 1 4 1 . 1 10 2 . . . . 1 3 2 . . 3 . Escape Stasis . | . . . . . . . . . . . . . . . . . . Rewire 131 | . . . . . . . . . . . . . 131 . . . . Trap . | . . . . . . . . . . . . . . . . . . Miscellaneous . | . . . . . . . . . . . . . . . . . . Route ------- -11/Scrapyard -10/Materials -10/Mines (discovered 3 exits: *Mat x2 / *Exi) -10/Exiles -9/Mines -8/Materials -7/Factory (discovered 3 exits: *Fac x2 / *Low) -7/Lower Caves -7/Lower Caves -7/Data Miner -6/Proximity Caves -6/Factory (discovered 2 exits: *Fac x2) -5/Factory -5/Extension (discovered 2 exits: [*Fac] / *Cet) -5/Cetus (discovered 2 exits: [*Fac] / [*Arc]) -5/Archives (discovered 2 exits: [*Fac] / *Hub) -5/Hub_04(d) -4/Factory History --------- Turn | Location | Event 12 | -11/Scrapyard | Discovered new exit (range 13) 97 | -11/Scrapyard | Entered Materials 300 | -10/Materials | Build established: Mutant 417 | -10/Materials | Destroyed 8 combat bots 575 | -10/Materials | Repaired Lgt. Treads 602 | -10/Materials | Repaired Lgt. Treads 662 | -10/Materials | Discovered new exit (range 8) 722 | -10/Materials | Entered Mines 725 | -10/Mines | Received a Mining Laser from a helpful Derelict 785 | -10/Mines | Identified exit to Materials 947 | -10/Mines | Learned 2 Materials zone layouts 1237 | -10/Mines | Discovered exit to Materials (range 8) 1454 | -10/Mines | Deemed a non-threat by the Exiles lab entrance 1454 | -10/Mines | Discovered new exit (range 5) 1460 | -10/Mines | Entered Exiles 1500 | -10/Exiles | Met 8R-AWN 1528 | -10/Exiles | Met EX-HEX 1631 | -10/Exiles | Met EX-DEC 1776 | -10/Exiles | Learned location of Zion (-6) 1816 | -10/Exiles | Met EX-BIN 1835 | -10/Exiles | Aligned with FarCom system 1837 | -10/Exiles | Given EX-Vault access code 1875 | -10/Exiles | Opened EX-Vault 1890 | -10/Exiles | Found AWS/Autocannon 1926 | -10/Exiles | Warned to stay clear of 0b10 Research branches 1941 | -10/Exiles | Exiles lab attacked by MAIN.C 2036 | -10/Exiles | Discovered new exit (range 10) 2051 | -10/Exiles | Left Exiles lab with AWS/Autocannon 2051 | -10/Exiles | Entered Mines 2074 | -9/Mines | Assisted by bots powering up and referring to "LRC-V3" 2121 | -9/Mines | Assembled infested the area 2126 | -9/Mines | Assisted by a Guerilla fighting off Assembled 2170 | -9/Mines | Destroyed 12 combat bots 2309 | -9/Mines | Found a hidden stash of uninstalled traps 2842 | -9/Mines | Received a Rocket Launcher from a helpful Derelict 2897 | -9/Mines | Learned location of 1 exit from Lower Caves 2902 | -9/Mines | Found the Drone Emporium 2915 | -9/Mines | Found Prototype Device 2963 | -9/Mines | Discovered new exit (range 9) 2979 | -9/Mines | Entered Materials 2979 | -8/Materials | Evolved 4 slots: Utility x2, Weapon x2 2983 | -8/Materials | Identified Thief Drone Bay 3065 | -8/Materials | Garrison activated, responded to threat 3236 | -8/Materials | Repaired Grenade Launcher 3325 | -8/Materials | Build established: Scavenger-Skirmisher 3567 | -8/Materials | Destroyed 9 combat bots 3989 | -8/Materials | Discovered new exit (range 13) 4488 | -8/Materials | Build established: Skirmisher 4954 | -8/Materials | Build established: Hauler-Skirmisher 5127 | -8/Materials | Identified exit to Factory 5129 | -8/Materials | Entered Factory 5129 | -7/Factory | Evolved 2 slots: Propulsion x1, Utility x1 5290 | -7/Factory | Discovered new exit (range 15) 5318 | -7/Factory | Identified exit to Factory 5815 | -7/Factory | Fabricated Imp. Heavy Treads (x2) 5957 | -7/Factory | Discovered exit to Factory (range 3) 5988 | -7/Factory | Discovered new exit (range 4) 5992 | -7/Factory | Identified exit to Lower Caves 6004 | -7/Factory | Entered Lower Caves 6005 | -7/Lower Caves | Identified exit to Lower Caves 6047 | -7/Lower Caves | Learned Factory stockpile data 6181 | -7/Lower Caves | Encountered a Warlord checkpoint 7050 | -7/Lower Caves | Entered another Lower Caves area 7078 | -7/Lower Caves | Learned Factory emergency access door positions 7488 | -7/Lower Caves | Learned location of 1 exit from Factory 7627 | -7/Lower Caves | Discovered new exit (range 15) 7648 | -7/Lower Caves | Identified exit to Data Miner 7650 | -7/Lower Caves | Entered Data Miner 7650 | -7/Data Miner | Discovered new exit (range 6) 7681 | -7/Data Miner | Met Data Miner 7714 | -7/Data Miner | Acquired the access code to Warlord's prototype stash 7714 | -7/Data Miner | Learned location of Section 7 (-2) 7740 | -7/Data Miner | Received God Mode back door access code from Data Miner 7780 | -7/Data Miner | Identified exit to Proximity Caves 7785 | -7/Data Miner | Entered Proximity Caves 7945 | -6/Proximity Caves | Escorted by Enhanced Grunt 8470 | -6/Proximity Caves | Destroyed 9 combat bots 8499 | -6/Proximity Caves | Learned Factory interactive machine intel 9153 | -6/Proximity Caves | Discovered exit to Factory (range 8) 9165 | -6/Proximity Caves | Entered Factory 9165 | -6/Factory | Evolved 2 slots: Utility x2 9166 | -6/Factory | Identified exit to Factory 9169 | -6/Factory | Loaded intel: 46 interactive machine locations 9476 | -6/Factory | Discovered exit to Factory (range 15) 9837 | -6/Factory | Fabricated Exp. Sensor Array (x1) 9865 | -6/Factory | Local fabrication network quarantined 9866 | -6/Factory | Incoming investigation squad redirected 10045 | -6/Factory | Fabricated Exp. Transmission Jammer? 10103 | -6/Factory | Entered another Factory area 10103 | -5/Factory | Evolved 2 slots: Propulsion x1, Utility x1 10104 | -5/Factory | Identified exit to Extension 10731 | -5/Factory | Entered Extension 10788 | -5/Extension | Rescued a captive Derelict 10789 | -5/Extension | Rescued a captive Derelict 10802 | -5/Extension | Rescued a captive Derelict 10886 | -5/Extension | Rescued a captive Derelict 10892 | -5/Extension | Build established: Hauler-Tank 10976 | -5/Extension | Rescued a captive Derelict 11479 | -5/Extension | Rescued A7 11603 | -5/Extension | Rescued a captive Derelict 11769 | -5/Extension | Build established: Scavenger-Gunner 12015 | -5/Extension | Discovered new exit (range 10) 12017 | -5/Extension | Discovered new exit (range 6) 12035 | -5/Extension | Disrupted transfer network 12140 | -5/Extension | Entered Cetus 12140 | -5/Cetus | Accompanied by 2 allies (A7) 12145 | -5/Cetus | Acquired a Cetus Manufacturing Module code from A7 12161 | -5/Cetus | Spotted Cetus Guard 12161 | -5/Cetus | Spotted Cetus Guard 12166 | -5/Cetus | Allies destroyed Cetus Guard 12166 | -5/Cetus | Spotted Cetus Guard 12172 | -5/Cetus | Destroyed Cetus Guard 12172 | -5/Cetus | Spotted Cetus Guard 12175 | -5/Cetus | Allies destroyed Cetus Guard 12186 | -5/Cetus | Destroyed Cetus Guard 12284 | -5/Cetus | Cetus Manufacturing Module disabled 12494 | -5/Cetus | Escorted A7 to Cetus Mainframe 12564 | -5/Cetus | Discovered new exit (range 16) 12608 | -5/Cetus | Spotted Cetus Guard 12608 | -5/Cetus | Spotted Cetus Guard 12618 | -5/Cetus | Destroyed Cetus Guard 12618 | -5/Cetus | Allies destroyed Cetus Guard 12618 | -5/Cetus | Spotted Cetus Guard 12618 | -5/Cetus | Spotted Cetus Guard 12623 | -5/Cetus | Destroyed Cetus Guard 12627 | -5/Cetus | Allies destroyed Cetus Guard 12642 | -5/Cetus | Discovered new exit (range 15) 12650 | -5/Cetus | Met Revision 17 12756 | -5/Cetus | Entered Archives 12756 | -5/Archives | Accompanied by 1 ally (A7) 12761 | -5/Archives | Received a hacking code to weaken MAIN.C 12927 | -5/Archives | Discovered new exit (range 14) 12948 | -5/Archives | Discovered new exit (range 14) 13346 | -5/Archives | Entered Hub_04(d) 13667 | -5/Hub_04(d) | Build established: Scavenger-Skirmisher 14013 | -5/Hub_04(d) | Discovered new exit (range 14) 14053 | -5/Hub_04(d) | Network Hub disabled 14054 | -5/Hub_04(d) | System corruption reached 10% 14068 | -5/Hub_04(d) | Entered Factory 14068 | -4/Factory | Evolved 2 slots: Power x1, Utility x1 14173 | -4/Factory | Self-destructed Last Messages --------------- 14021_ HV Slug penetrates A-15 Conveyor. 14021_ A-15 Conveyor suffers critical hit. 14021_ A-15 Conveyor destroyed. 14021_ HV Slug penetrates Wall. 14021_ Slug penetrates Wall. 14022_ K-01 Serf collects debris. 14025_ Acquired 17 matter. 14029_ U-05 Engineer builds a Wall. 14029_ Dropped Lrg. Storage Unit. 14035_ U-05 Engineer builds a Wall. 14053_ Slug penetrates Door. 14053_ ALERT: Network intrusion management efficiency reduced by 20%. Dispatching hub defense squads. All non-combat units evacuate. 14053_ Network Hub explodes. PARAMETERS=POWER_1,UTILITY_1 LOCATION=UNKNOWN GOAL=ESCAPE 14068_ Receiving FarCom transmissions... 14147_ Acquired Thermal Shield. 14167_ Acquired Imp. Medium Treads. Map ----- +----------------------------------------------------+ | ?# """ #??????????????????????? | | ?# #??###?#???????????????? | | ?# """ #?# ??????????????? | | ?# """ #?# ???????????????? | | ?# """ #?# ???????????????? | | ?#^ #?# ???????????????? | | ?# """ ### """" ??????????????? | | ?# """ + """" ??????????????? | | ?# """ # """" "?????????????? | | ?# # """" "?????????????? | | ?# """ + """" "?????????????? | | ?# """ # """" "?????????????? | | ?# """ # """" "?????????????? | | ?# # ??????????????? | | ?# ! """ ########?????????????? | | ?# """ #######??????????????? | | ?# """ +?????????? | | ?# #######??????????????? | | ?# #????????????????????? | | ?# ###+##+######???????????????? | | ?# # #???????????????? | | ?# ?# #???????????????? | | ?# ??# ! #???????????????? | | ?# ???#=! #???????????????? | | ???????# #???????????????? | | ???????# @ #???????????????? | | ???????# #???????????????? | | ???????#############???????????????? | | ???????????????????????????????????? | | ???????????????????????????????????? | | ???????????????????????????????????? | | ???????????????????????????????????? | | ???????????????????????????????????? | | ???????????????????????????????????? | | ???????????????????????????????????? | | ???????????????????????????????????? | | ???????????????????????????????????? | | ???????????????????????????????????? | | ???????????????????????????????????? | | ???????????????????????????????????? | | ???????????????????????????????????? | | ???????????????????????????????????? | | ???????????????????????????????????? | | ???????????????????????????????????? | | ???????????????????????????????????? | | ???????????????????????????????????? | | ???????????????????????????????????? | | ???????????????????????????????????? | | ???????????????????????????????????? | | ???????????????????????????????????? | +----------------------------------------------------+ Best States ------------- Heat Dissipation 74 Energy Generation 45 Energy Capacity 600 Matter Stores 300 Matter Capacity 300 Sight Range 16 Robot Scan Range 16 Terrain Scan Density 10 Jamming Range 22 Armor Coverage 450 Resistance: TH 20 Resistance: EM 15 Core Shielding 20 Weapon Cycling 15 Evasion (%) 40 Targeting Accuracy 8 Target Analysis 6 Recoil Reduction 4 Salvage Targeting 2 Item Schematics ----------------- Hrd. Medium Armor Plating | -8/Materials | Scanalyzed Adv. Treads | -8/Materials | Scanalyzed Imp. Assault Rifle | -8/Materials | Scanalyzed Lgt. Regenerative Plating | -7/Data Miner | Free Combat Drone Bay | -7/Data Miner | Free Exp. Flexi-carbon Leg | -7/Data Miner | Free Exp. Sensor Array | -7/Data Miner | Free Exp. Terrain Scan Processor | -7/Data Miner | Free Exp. Transmission Jammer | -7/Data Miner | Free Plasma Sword | -7/Data Miner | Free Kinetic Spear | -7/Data Miner | Free Hvy. Treads | -5/Extension | Hacked Robot Schematics ------------------ S-27 Virus | -7/Data Miner | Free G-50 Soldier | -7/Data Miner | Free L-41 Fighter | -7/Data Miner | Free P-70 Sage | -7/Data Miner | Free I-36 Angel | -7/Data Miner | Free I-47 Archangel | -7/Data Miner | Free Fabricated ------------ Imp. Heavy Treads | x2 | -7/Factory | Preloaded Exp. Sensor Array | x1 | -6/Factory Exp. Transmission Jammer | x1 | -6/Factory Alien Tech Used ----------------- None Achievements -------------- None Challenges ------------ None Game ------ Seed BottomlessHardcellEdition Manual? 0 Play Time 01:07:51 Cumulative 644.7 hours Start 2020.10.08 @ 14:42:29 End 2020.10.08 @ 18:25:15 Sessions 1 Manual Loads 0 Difficulty Rogue Special Mode None Game No. 980 Rogue 980 Adventurer 0 Explorer 0 Win Type - Total 62 Types 38/1/8/11/4/0/0/0/0 Lore% 94 Gallery% 94 Achievement% 83 Wizard Run 0 Options --------- ASCII 1 Keyboard 0 Movement Numpad Keybinds 0 Fullscreen 0 Font 14/SmallcapsGlow Map View 76x50 Tactical HUD 1 Map Filters NONE Filters NONE Steam 1 RUN: ed88dc35-4d4c-492a-bf2d-301d06fa17fc